bitfinex/quotes_BTCUSD_20250615
["timestamp","ask_amount","ask_price","bid_price","bid_amount"]
[1749966949724,0.73812251,106150.0,106140.0,9.40381883]
[1749966950682,0.73812251,106150.0,106140.0,9.24977883]
[1749966950885,0.73812274,106150.0,106140.0,9.40381883]
[1749966951335,0.72928635,106150.0,106140.0,9.40381883]
[1749966951541,0.73812275,106150.0,106140.0,9.40381883]
[1749966952248,0.72928635,106150.0,106140.0,9.40381883]
[1749966952461,0.73812275,106150.0,106140.0,9.40381883]
[1749966952690,0.72928635,106150.0,106140.0,9.40381883]
[1749966952903,0.73812275,106150.0,106140.0,9.40381883]
[1749966953101,0.72928635,106150.0,106140.0,9.40381883]
[1749966953324,0.73812506,106150.0,106140.0,9.40381883]
[1749966953529,0.73812504,106150.0,106140.0,9.40381883]
[1749966953737,0.72928635,106150.0,106140.0,9.40381883]
[1749966956412,0.7381272,106150.0,106140.0,9.40381883]
[1749966956620,0.72928635,106150.0,106140.0,9.40381883]
[1749966956827,0.73812719,106150.0,106140.0,9.40381883]
[1749966957041,0.72928635,106150.0,106140.0,9.40381883]
[1749966957566,0.7381271,106150.0,106140.0,9.40381883]
[1749966957773,0.73812708,106150.0,106140.0,9.40381883]
[1749966957981,0.73812707,106150.0,106140.0,9.40381883]
[1749966958411,0.73812706,106150.0,106140.0,9.40381883]
[1749966958627,0.73812705,106150.0,106140.0,9.40381883]
[1749966958808,0.73812706,106150.0,106140.0,9.40381883]
[1749966959026,0.72928635,106150.0,106140.0,9.40381883]
[1749966959236,0.73812703,106150.0,106140.0,9.40381883]
[1749966959663,0.73812711,106150.0,106140.0,9.40381883]
[1749966960084,0.73812712,106150.0,106140.0,9.40381883]
[1749966960853,0.73812711,106150.0,106140.0,9.40381883]
[1749966961478,0.73812712,106150.0,106140.0,9.40381883]
[1749966962335,0.72928635,106150.0,106140.0,9.40381883]
[1749966962543,0.73812711,106150.0,106140.0,9.40381883]
[1749966962963,0.73812713,106150.0,106140.0,9.40381883]
[1749966963369,0.73812712,106150.0,106140.0,9.40381883]
[1749966963569,0.73812711,106150.0,106140.0,9.40381883]
[1749966964010,0.72928635,106150.0,106140.0,9.40381883]
[1749966964431,0.73812708,106150.0,106140.0,9.40381883]
[1749966964671,0.73812707,106150.0,106140.0,9.40381883]
[1749966965105,0.73812709,106150.0,106140.0,9.40381883]
[1749966965309,0.72928635,106150.0,106140.0,9.40381883]
[1749966966179,0.72928635,106150.0,106140.0,9.40377883]
[1749966966426,0.73812712,106150.0,106140.0,9.40377883]
[1749966966841,0.73812714,106150.0,106140.0,9.40377883]
[1749966967043,0.73812716,106150.0,106140.0,9.37977883]
[1749966967251,0.72928635,106150.0,106140.0,9.37977883]
[1749966967463,0.73812717,106150.0,106140.0,9.37977883]
[1749966967876,0.73812715,106150.0,106140.0,9.40277883]
[1749966968220,0.72928635,106150.0,106140.0,9.40277883]
[1749966968428,0.73813065,106150.0,106140.0,9.40277883]
[1749966968848,0.72928635,106150.0,106140.0,9.40277883]
[1749966969058,0.73813066,106150.0,106140.0,9.40277883]
[1749966969272,0.73813065,106150.0,106140.0,9.40277883]
[1749966969899,0.73813066,106150.0,106140.0,9.40277883]
[1749966970567,0.72928635,106150.0,106140.0,9.40277883]
[1749966971015,0.72928635,106150.0,106140.0,9.35547883]
[1749966973342,0.72928635,106150.0,106140.0,9.20147883]
[1749966973569,0.72928635,106150.0,106140.0,9.35543883]
[1749966974244,0.72928635,106150.0,106140.0,9.20147883]
[1749966974657,0.72928635,106150.0,106140.0,9.35543883]
[1749966974889,0.72928635,106150.0,106140.0,9.20147883]
[1749966975105,1.55696008,106150.0,106140.0,9.20147883]
[1749966978938,1.71092008,106150.0,106140.0,9.20147883]
[1749966980077,1.68752008,106150.0,106140.0,9.20147883]
[1749966981877,1.71262008,106150.0,106140.0,9.20147883]
[1749966984676,1.66312008,106150.0,106140.0,9.20147883]
[1749966987516,0.62941262,106150.0,106140.0,9.20147883]
[1749966987754,0.78337262,106150.0,106140.0,9.24947883]
[1749966987958,1.22324635,106150.0,106140.0,9.24947883]
[1749966989503,1.50916008,106150.0,106140.0,9.24947883]
[1749966993563,1.66308008,106150.0,106140.0,9.24947883]
[1749966994555,1.66308008,106150.0,106140.0,9.24914773]
[1749966995533,1.50916008,106150.0,106140.0,9.24914773]
[1749966995715,1.66308008,106150.0,106140.0,9.24914773]
[1749966999560,1.50916008,106150.0,106140.0,9.24914773]
[1749967017923,1.06928635,106150.0,106140.0,9.24914773]
[1749967019950,1.06928635,106150.0,106140.0,9.40298773]
[1749967026823,1.06928635,106150.0,106140.0,9.24914773]
[1749967027035,1.06928635,106150.0,106140.0,9.40298773]
[1749967028812,1.06928635,106150.0,106140.0,9.24914773]
[1749967029030,1.06928635,106150.0,106140.0,9.40298773]
[1749967030907,1.06928635,106150.0,106140.0,9.61026069]
[1749967031138,1.06928635,106150.0,106140.0,9.60083944]
[1749967031978,1.06928635,106150.0,106140.0,9.5914181]
[1749967032414,1.06928635,106150.0,106140.0,9.60083961]
[1749967032853,1.06928635,106150.0,106140.0,9.40298773]
[1749967034230,1.06928635,106150.0,106140.0,9.41240924]
[1749967036630,1.06928635,106150.0,106140.0,9.40298773]
[1749967037272,0.62941262,106150.0,106140.0,9.40298773]
[1749967037489,1.06928635,106150.0,106140.0,9.40298773]
[1749967040748,1.06928635,106150.0,106140.0,9.24914773]
[1749967040982,1.06928635,106150.0,106140.0,9.40294773]
[1749967048157,1.07812439,106150.0,106140.0,9.60079961]
[1749967048365,1.07812437,106150.0,106140.0,9.60079961]
[1749967048599,1.06928635,106150.0,106140.0,9.60079961]
[1749967048843,1.07812432,106150.0,106140.0,9.60079961]
[1749967049245,1.07812432,106150.0,106140.0,9.61022103]
[1749967049565,1.06928635,106150.0,106140.0,9.61022103]
[1749967049772,1.07812432,106150.0,106140.0,9.61022103]
[1749967050199,0.10983797,106150.0,106140.0,10.24248574]
[1749967050424,0.101,106150.0,106140.0,10.31185081]
[1749967050628,0.101,106150.0,106140.0,10.34952288]
[1749967050835,0.101,106150.0,106140.0,10.37753697]
[1749967051485,0.101,106150.0,106140.0,10.38937793]
[1749967051699,0.101,106150.0,106140.0,10.35695044]
[1749967052376,0.1,106150.0,106140.0,10.34395044]
[1749967053020,0.101,106150.0,106140.0,10.35695044]
[1749967054308,0.101,106150.0,106140.0,10.37149129]
[1749967054724,0.101,106150.0,106140.0,10.81136502]
[1749967056648,0.101,106150.0,106140.0,10.70337484]
[1749967057949,0.101,106150.0,106140.0,10.67536075]
[1749967058164,0.101,106150.0,106140.0,10.6870296]
[1749967060056,0.101,106150.0,106140.0,10.17529623]
[1749967060245,0.101,106150.0,106140.0,11.05504369]
[1749967060449,0.101,106150.0,106140.0,11.15119291]
[1749967061522,0.101,106150.0,106140.0,10.99739291]
[1749967061754,0.101,106150.0,106140.0,10.46136996]
[1749967061962,0.101,106150.0,106140.0,10.65480996]
[1749967062379,0.101,106150.0,106140.0,11.09468369]
[1749967074159,0.101,106150.0,106140.0,11.13211118]
[1749967074344,0.101,106150.0,106140.0,11.09468369]
[1749967074868,0.101,106150.0,106140.0,11.13211118]
[1749967075301,0.101,106150.0,106140.0,10.04725487]
[1749967075502,0.101,106150.0,106140.0,10.09516026]
[1749967075720,0.101,106150.0,106140.0,10.26020126]
[1749967076260,0.101,106150.0,106140.0,10.70007499]
[1749967076470,0.101,106150.0,106140.0,10.26020126]
[1749967077105,0.101,106150.0,106140.0,10.06684126]
[1749967077309,0.101,106150.0,106140.0,10.21123226]
[1749967079624,0.101,106150.0,106140.0,10.01787226]
[1749967079830,0.101,106150.0,106140.0,10.24865975]
[1749967081098,0.101,106150.0,106140.0,10.22064566]
[1749967085687,0.101,106150.0,106140.0,10.2206278]
[1749967095554,0.10007504,106150.0,106140.0,10.25152299]
[1749967097360,0.10007504,106150.0,106140.0,10.74010734]
[1749967098962,0.10007504,106150.0,106140.0,10.79631508]
[1749967099432,0.10007504,106150.0,106140.0,10.79631841]
[1749967101198,0.10007504,106150.0,106140.0,10.32567868]
[1749967102110,0.10007504,106150.0,106140.0,9.88593414]
[1749967102323,0.10007504,106150.0,106140.0,10.32567868]
[1749967104270,0.10007504,106150.0,106140.0,10.76542322]
[1749967107581,0.10007504,106150.0,106140.0,9.88593414]
[1749967107791,0.10007504,106150.0,106140.0,10.76542322]
[1749967108208,0.10007504,106150.0,106140.0,10.32567868]
[1749967112445,0.10007504,106150.0,106140.0,10.34021953]
[1749967112664,0.10007504,106150.0,106140.0,11.13080374]
[1749967112864,0.10007504,106150.0,106140.0,11.102909]
[1749967113077,0.10007504,106150.0,106140.0,11.20676126]
[1749967113284,0.10007504,106150.0,106140.0,10.97809904]
[1749967113483,0.10007504,106150.0,106140.0,11.20676126]
[1749967113917,0.09907504,106150.0,106140.0,11.11861904]
[1749967114120,0.10007504,106150.0,106140.0,11.13561904]
[1749967114536,0.10007504,106150.0,106140.0,11.13061904]
[1749967114961,0.10007504,106150.0,106140.0,11.13861904]
[1749967115183,0.10007504,106150.0,106140.0,11.19467023]
[1749967116238,0.10007504,106150.0,106140.0,11.28793904]
[1749967116444,0.10007504,106150.0,106140.0,11.36308126]
[1749967116853,0.04349855,106150.0,106140.0,11.36308126]
[1749967117283,0.04349855,106150.0,106140.0,11.8028258]
[1749967118047,0.04349855,106150.0,106140.0,11.6096258]
[1749967118270,0.04349855,106150.0,106140.0,11.8028258]
[1749967118445,0.04349855,106150.0,106140.0,11.36308126]
[1749967119259,0.04349855,106150.0,106140.0,10.89313887]
[1749967122561,0.04349855,106150.0,106140.0,10.69993887]
[1749967122973,0.04349855,106150.0,106140.0,10.89309887]
[1749967123174,0.04349855,106150.0,106140.0,10.79377887]
[1749967125036,0.04349855,106150.0,106140.0,10.60061887]
[1749967125699,0.04349855,106150.0,106140.0,10.79377887]
[1749967126420,0.04349855,106150.0,106140.0,11.08867887]
[1749967128147,0.04349855,106150.0,106140.0,11.01348019]
[1749967128820,0.04349855,106150.0,106140.0,11.08862241]
[1749967129031,0.04349855,106150.0,106140.0,10.82032019]
[1749967129263,0.04349855,106150.0,106140.0,11.01348019]
[1749967129494,0.04349855,106150.0,106140.0,10.82032019]
[1749967129762,0.04349855,106150.0,106140.0,11.02100044]
[1749967131328,0.04349855,106150.0,106140.0,10.97100044]
[1749967132290,0.04349855,106150.0,106140.0,10.67610044]
[1749967133056,0.04349855,106150.0,106140.0,10.72610044]
[1749967133295,0.04349855,106150.0,106140.0,10.77224966]
[1749967133934,0.04349855,106150.0,106140.0,10.82224966]
[1749967136290,0.04349855,106150.0,106140.0,10.92156966]
[1749967136508,0.04349855,106150.0,106140.0,10.82224966]
[1749967137349,0.04349855,106150.0,106140.0,10.77224966]
[1749967138227,0.00883695,106170.0,106160.0,0.21665302]
[1749967138424,0.00883695,106170.0,106160.0,1.75686322]
[1749967138623,0.00883695,106170.0,106160.0,1.81283346]
[1749967138953,0.00883695,106170.0,106160.0,1.84113946]
[1749967139537,0.00883695,106170.0,106160.0,1.87269597]
[1749967140150,0.121033,106200.0,106190.0,0.61723267]
[1749967140385,0.121033,106200.0,106190.0,1.91300742]
[1749967140609,0.121033,106200.0,106190.0,1.84772658]
[1749967140828,0.121033,106200.0,106190.0,1.63151211]
[1749967141082,0.121033,106200.0,106190.0,1.68616096]
[1749967141304,0.116033,106200.0,106190.0,1.02195427]
[1749967141516,0.02944343,106210.0,106200.0,0.38186112]
[1749967141752,0.02944343,106210.0,106200.0,1.51190355]
[1749967141965,0.02944343,106210.0,106200.0,1.54077018]
[1749967142391,0.02944343,106210.0,106200.0,1.538833]
[1749967142802,0.02944343,106210.0,106200.0,1.56864569]
[1749967143011,0.02944343,106210.0,106200.0,1.538833]
[1749967143434,0.02944343,106210.0,106200.0,1.53844132]
[1749967143877,0.02944343,106210.0,106200.0,1.55307278]
[1749967144090,0.02944343,106210.0,106200.0,1.59027715]
[1749967144338,0.02944343,106210.0,106200.0,1.55307278]
[1749967144835,0.02944343,106210.0,106200.0,1.54607278]
[1749967145033,0.02944343,106210.0,106200.0,1.55407278]
[1749967145233,0.02944343,106210.0,106200.0,1.55107278]
[1749967145444,0.02944343,106210.0,106200.0,1.55091625]
[1749967146532,0.02944343,106210.0,106200.0,1.55591625]
[1749967147108,0.02944343,106210.0,106200.0,1.5408274]
[1749967147562,0.02944343,106210.0,106200.0,1.3478274]
[1749967147786,0.02944343,106210.0,106200.0,1.15015071]
[1749967148601,0.02944343,106210.0,106200.0,0.51647402]
[1749967148806,0.45423463,106210.0,106200.0,0.34807833]
[1749967149005,0.02944343,106210.0,106200.0,0.36541318]
[1749967149276,0.02944343,106210.0,106200.0,0.85877318]
[1749967149571,0.02944343,106210.0,106200.0,1.40647342]
[1749967149791,0.02944343,106210.0,106200.0,1.01471572]
[1749967150001,0.02944343,106210.0,106200.0,1.42149241]
[1749967150214,0.02944343,106210.0,106200.0,1.44529241]
[1749967150424,0.02944343,106210.0,106200.0,1.45029241]
[1749967150634,0.02944343,106210.0,106200.0,1.89095866]
[1749967150854,0.02944343,106210.0,106200.0,1.55235577]
[1749967151058,0.02944343,106210.0,106200.0,1.55735577]
[1749967151264,0.02944343,106210.0,106200.0,1.52957697]
[1749967151476,0.02944343,106210.0,106200.0,1.55735577]
[1749967152312,0.02944343,106210.0,106200.0,1.46120655]
[1749967153111,0.02944343,106210.0,106200.0,1.48604271]
[1749967153760,0.02944343,106210.0,106200.0,1.46120655]
[1749967154636,0.03827893,106210.0,106200.0,1.17034655]
[1749967154851,0.03827905,106210.0,106200.0,1.14256775]
[1749967155123,0.03827915,106210.0,106200.0,1.45647697]
[1749967155352,0.03827907,106210.0,106200.0,1.50865577]
[1749967155587,0.03827907,106210.0,106200.0,2.03653683]
[1749967155830,0.03827841,106210.0,106200.0,2.03653683]
[1749967156058,0.03827831,106210.0,106200.0,2.03653683]
[1749967156275,0.03827831,106210.0,106200.0,2.13585683]
[1749967156491,0.03827827,106210.0,106200.0,2.16069299]
[1749967156701,0.02944343,106210.0,106200.0,2.16069299]
[1749967157519,0.03827823,106210.0,106200.0,2.16069299]
[1749967157723,0.0382782,106210.0,106200.0,2.16272688]
[1749967157944,0.02944343,106210.0,106200.0,2.19048712]
[1749967158239,0.03827825,106210.0,106200.0,2.19048818]
[1749967158441,0.03827825,106210.0,106200.0,2.10807803]
[1749967158648,0.03827816,106210.0,106200.0,2.10807803]
[1749967158877,0.02944343,106210.0,106200.0,2.10807803]
[1749967159721,0.03827807,106210.0,106200.0,2.16388631]
[1749967160289,0.0382781,106210.0,106200.0,2.16388631]
[1749967160712,0.03826349,106210.0,106200.0,2.18872247]
[1749967160953,0.02944343,106210.0,106200.0,2.18872247]
[1749967161197,0.03826345,106210.0,106200.0,2.18872247]
[1749967161430,0.02944343,106210.0,106200.0,2.16388631]
[1749967161649,0.03826345,106210.0,106200.0,2.12668194]
[1749967161883,0.0382633,106210.0,106200.0,2.12668194]
[1749967162098,0.02944343,106210.0,106200.0,2.42158194]
[1749967162525,0.03826315,106210.0,106200.0,2.4414181]
[1749967163012,0.03826315,106210.0,106200.0,2.4484181]
[1749967163223,0.03826315,106210.0,106200.0,2.4534181]
[1749967163436,0.03826312,106210.0,106200.0,2.50210079]
[1749967163656,0.03826311,106210.0,106200.0,2.50210079]
[1749967163872,0.02944343,106210.0,106200.0,2.50210079]
[1749967164102,0.03826311,106210.0,106200.0,2.50210079]
[1749967164319,0.02944343,106210.0,106200.0,2.44629251]
[1749967164540,6e-05,106220.0,106210.0,0.62109188]
[1749967164757,6e-05,106220.0,106210.0,1.52146129]
[1749967164985,6e-05,106220.0,106210.0,1.57611014]
[1749967165225,6e-05,106220.0,106210.0,1.7328546]
[1749967165445,0.01918617,106240.0,106230.0,1.0608278]
[1749967165663,0.01918617,106240.0,106230.0,1.4648587]
[1749967165881,0.01918617,106240.0,106230.0,1.52212877]
[1749967166101,0.01918617,106240.0,106230.0,1.54131477]
[1749967166319,0.01918617,106240.0,106230.0,1.81271477]
[1749967166580,0.01918617,106240.0,106230.0,1.77565633]
[1749967166791,0.01918617,106240.0,106230.0,1.78312929]
[1749967166996,0.01418617,106240.0,106230.0,1.78612929]
[1749967167206,0.01418617,106240.0,106230.0,1.77912929]
[1749967167416,0.01418617,106240.0,106230.0,1.78412929]
[1749967167902,0.01418617,106240.0,106230.0,1.78912929]
[1749967168329,0.01418617,106240.0,106230.0,1.54062163]
[1749967168531,0.01418617,106240.0,106230.0,1.70694881]
[1749967169010,0.01418617,106240.0,106230.0,1.72581881]
[1749967169232,0.01418617,106240.0,106230.0,1.80096103]
[1749967169447,0.01418617,106240.0,106230.0,1.82751385]
[1749967169669,0.01418617,106240.0,106230.0,1.75237163]
[1749967170102,0.01418617,106240.0,106230.0,1.55949163]
[1749967170317,0.01418617,106240.0,106230.0,1.72581881]
[1749967170544,0.01418617,106240.0,106230.0,1.43383881]
[1749967170766,0.01418617,106240.0,106230.0,1.62671881]
[1749967171410,0.01418617,106240.0,106230.0,1.43383881]
[1749967171626,0.01418617,106240.0,106230.0,1.58715881]
[1749967171834,0.01418617,106240.0,106230.0,1.62671881]
[1749967172476,0.01418617,106240.0,106230.0,1.45723881]
[1749967172721,0.01418617,106240.0,106230.0,1.53273881]
[1749967173199,0.01418617,106240.0,106230.0,1.72557881]
[1749967173431,0.01418617,106240.0,106230.0,1.58845455]
[1749967173661,0.01418617,106240.0,106230.0,1.19777786]
[1749967173903,0.01418617,106240.0,106230.0,1.5577373]
[1749967174136,0.01418617,106240.0,106230.0,1.7505773]
[1749967174582,0.01418617,106240.0,106230.0,1.69486156]
[1749967174814,0.01418617,106240.0,106230.0,1.50773387]
[1749967175047,0.01418617,106240.0,106230.0,1.78013423]
[1749967175540,0.01418617,106240.0,106230.0,1.58729423]
[1749967175764,0.01418617,106240.0,106230.0,1.73123423]
[1749967175984,0.01418617,106240.0,106230.0,1.53839423]
[1749967176202,0.01418617,106240.0,106230.0,1.73123423]
[1749967176428,0.01418617,106240.0,106230.0,1.53039423]
[1749967176653,0.01418617,106240.0,106230.0,1.71823423]
[1749967176882,0.01418617,106240.0,106230.0,1.72823423]
[1749967179560,0.06158617,106240.0,106230.0,0.42034633]
[1749967179779,0.0703804,106240.0,106230.0,0.57544012]
[1749967179964,0.07038056,106240.0,106230.0,0.9578498]
[1749967180211,0.06158617,106240.0,106230.0,0.9578498]
[1749967180444,0.07038063,106240.0,106230.0,0.9578498]
[1749967180659,0.06158617,106240.0,106230.0,0.86115902]
[1749967180846,0.07038063,106240.0,106230.0,1.05399902]
[1749967181067,0.06158617,106240.0,106230.0,1.05399902]
[1749967181281,0.0703806,106240.0,106230.0,1.02613019]
[1749967181494,0.07038061,106240.0,106230.0,1.02613019]
[1749967181716,0.07038061,106240.0,106230.0,1.03613019]
[1749967181947,0.06158617,106240.0,106230.0,0.93998097]
[1749967182159,0.07038062,106240.0,106230.0,0.93998097]
[1749967182379,0.47108682,106240.0,106230.0,0.42048331]
[1749967182584,0.07038138,106240.0,106230.0,0.57617121]
[1749967182794,0.07038141,106240.0,106230.0,0.57617121]
[1749967183282,0.07038141,106240.0,106230.0,0.56917121]
[1749967183501,0.06158617,106240.0,106230.0,0.57317121]
[1749967183719,0.06158617,106240.0,106230.0,0.57017121]
[1749967183720,0.0703815,106240.0,106230.0,0.57017121]
[1749967183943,0.0703815,106240.0,106230.0,0.65161362]
[1749967184173,0.4616748,106240.0,106230.0,0.34944802]
[1749967184410,0.07038188,106240.0,106230.0,0.34944802]
[1749967184630,0.06158617,106240.0,106230.0,0.54228802]
[1749967184862,0.06158617,106240.0,106230.0,0.38900802]
[1749967185080,0.06158617,106240.0,106230.0,0.54228802]
[1749967185826,0.06158617,106240.0,106230.0,0.34944802]
[1749967186223,0.06158617,106240.0,106230.0,0.54228802]
[1749967186438,0.06158617,106240.0,106230.0,0.34944802]
[1749967186892,0.06158617,106240.0,106230.0,0.54228802]
[1749967187763,0.45226286,106240.0,106230.0,0.54228802]
[1749967188313,0.06158617,106240.0,106230.0,0.34944802]
[1749967188532,0.06158617,106240.0,106230.0,0.54228802]
[1749967189594,0.06158617,106240.0,106230.0,0.62001522]
[1749967190007,0.06158617,106240.0,106230.0,0.54228802]
[1749967190853,0.07042131,106240.0,106230.0,0.54228802]
[1749967191622,0.06158617,106240.0,106230.0,0.54228802]
[1749967191831,0.07042131,106240.0,106230.0,0.54228802]
[1749967192222,0.06158617,106240.0,106230.0,0.54228802]
[1749967192475,0.01418617,106240.0,106230.0,1.01069191]
[1749967192687,0.01418617,106240.0,106230.0,1.0812751]
[1749967192898,0.01418617,106240.0,106230.0,1.0385751]
[1749967193106,0.01418617,106240.0,106230.0,0.57017121]
[1749967193506,0.01418617,106240.0,106230.0,0.56617121]
[1749967194137,0.03718617,106240.0,106230.0,0.53828802]
[1749967194553,0.01418617,106240.0,106230.0,0.56717121]
[1749967194761,0.01418617,106240.0,106230.0,0.66332043]
[1749967194972,0.01418617,106240.0,106230.0,1.05899712]
[1749967195174,0.01418617,106240.0,106230.0,1.11623797]
[1749967195385,0.01418617,106240.0,106230.0,0.72556128]
[1749967196548,0.01418617,106240.0,106230.0,0.62941206]
[1749967197627,0.01418617,106240.0,106230.0,1.02008875]
[1749967197807,0.01418617,106240.0,106230.0,1.36008875]
[1749967198499,0.01418617,106240.0,106230.0,0.92671206]
[1749967198713,0.05908617,106240.0,106230.0,0.37933121]
[1749967198966,0.44976286,106240.0,106230.0,0.54428802]
[1749967199191,0.05908617,106240.0,106230.0,0.54428802]
[1749967199410,0.05908617,106240.0,106230.0,0.61721522]
[1749967199411,0.44976286,106240.0,106230.0,0.61721522]
[1749967199849,0.44976286,106240.0,106230.0,0.62021522]
[1749967200059,0.05908617,106240.0,106230.0,0.62021522]
[1749967201158,0.01418617,106240.0,106230.0,0.83259276]
[1749967201381,0.01418617,106240.0,106230.0,1.47636805]
[1749967201812,0.01418617,106240.0,106230.0,1.50419717]
[1749967202037,0.01418617,106240.0,106230.0,1.46704507]
[1749967202257,0.01418617,106240.0,106230.0,1.46304507]
[1749967202475,0.01418617,106240.0,106230.0,1.48191507]
[1749967202692,0.01418617,106240.0,106230.0,1.48891507]
[1749967203145,0.01418617,106240.0,106230.0,1.49191507]
[1749967203379,0.01418617,106240.0,106230.0,1.48891507]
[1749967203606,0.01418617,106240.0,106230.0,1.53891507]
[1749967203819,0.01418617,106240.0,106230.0,1.54391507]
[1749967204036,0.01418617,106240.0,106230.0,1.48820276]
[1749967204464,0.01418617,106240.0,106230.0,1.48120276]
[1749967204862,0.01418617,106240.0,106230.0,1.58852276]
[1749967205330,0.01418617,106240.0,106230.0,2.05434167]
[1749967205544,0.01418617,106240.0,106230.0,1.66366498]
[1749967206000,0.01418617,106240.0,106230.0,1.65066498]
[1749967206203,0.01418617,106240.0,106230.0,1.94556498]
[1749967206430,0.01418617,106240.0,106230.0,1.95556498]
[1749967206640,0.01418617,106240.0,106230.0,2.40324167]
[1749967206866,0.00110069,106250.0,106240.0,0.34630074]
[1749967207087,0.00110069,106250.0,106240.0,1.21697577]
[1749967207324,0.00110069,106250.0,106240.0,1.58109964]
[1749967207545,0.00110069,106250.0,106240.0,1.21697577]
[1749967208190,0.00110069,106250.0,106240.0,1.19842295]
[1749967208415,0.00110069,106250.0,106240.0,1.23798295]
[1749967208915,0.01122103,106260.0,106250.0,1.10808705]
[1749967209137,0.01122103,106260.0,106250.0,1.47598107]
[1749967209353,0.01122103,106260.0,106250.0,1.49485107]
[1749967209776,0.00122103,106260.0,106250.0,1.86553107]
[1749967209985,0.00122103,106260.0,106250.0,1.94067329]
[1749967210197,0.00122103,106260.0,106250.0,1.86553107]
[1749967210847,0.00122103,106260.0,106250.0,1.87253107]
[1749967211308,0.00122103,106260.0,106250.0,1.77321107]
[1749967211940,0.00122103,106260.0,106250.0,1.79254825]
[1749967212160,0.00122103,106260.0,106250.0,1.69483329]
[1749967212381,0.00122103,106260.0,106250.0,1.88763329]
[1749967212654,0.00122103,106260.0,106250.0,1.69483329]
[1749967212868,0.00122103,106260.0,106250.0,1.88763329]
[1749967213503,0.00122103,106260.0,106250.0,1.69483329]
[1749967213937,0.00122103,106260.0,106250.0,1.86876329]
[1749967215127,0.00122103,106260.0,106250.0,2.16366329]
[1749967216158,0.00122103,106260.0,106250.0,1.97086329]
[1749967216361,0.00122103,106260.0,106250.0,1.7729866]
[1749967216572,0.00122103,106260.0,106250.0,2.2006767]
[1749967219750,0.00122103,106260.0,106250.0,1.6197466]
[1749967219973,0.00122103,106260.0,106250.0,11.7365247]
[1749967220160,0.00122103,106260.0,106250.0,10.46562816]
[1749967220399,0.00122103,106260.0,106250.0,10.97252344]
[1749967220820,0.00122103,106260.0,106250.0,10.38904675]
[1749967221034,0.04592103,106260.0,106250.0,10.56252075]
[1749967221248,0.04592103,106260.0,106250.0,10.99866997]
[1749967221484,0.04592103,106260.0,106250.0,10.48741082]
[1749967221694,0.04592103,106260.0,106250.0,11.05634666]
[1749967221906,0.04592103,106260.0,106250.0,11.38934666]
[1749967222116,0.05475265,106260.0,106250.0,11.40388751]
[1749967222325,0.04592103,106260.0,106250.0,11.39688751]
[1749967222514,0.04592103,106260.0,106250.0,11.00921082]
[1749967222773,0.05475265,106260.0,106250.0,11.00921082]
[1749967222987,0.05475265,106260.0,106250.0,11.00621082]
[1749967223199,0.05475265,106260.0,106250.0,11.01221082]
[1749967223615,0.05475264,106260.0,106250.0,11.01221082]
[1749967223829,0.05475264,106260.0,106250.0,11.03108082]
[1749967224091,0.05475264,106260.0,106250.0,11.01221082]
[1749967224513,0.04592103,106260.0,106250.0,11.01221082]
[1749967225980,0.04592103,106260.0,106250.0,10.85897082]
[1749967226194,0.04592103,106260.0,106250.0,11.01221082]
[1749967227491,0.02382103,106260.0,106250.0,11.01221082]
[1749967227704,0.00122103,106260.0,106250.0,11.01221082]
[1749967227961,0.00122103,106260.0,106250.0,11.03501082]
[1749967228168,0.00122103,106260.0,106250.0,11.01221082]
[1749967228378,0.00122103,106260.0,106250.0,11.40304751]
[1749967228583,0.00122103,106260.0,106250.0,11.01237082]
[1749967228792,0.00122103,106260.0,106250.0,10.81941082]
[1749967228995,0.02412103,106260.0,106250.0,11.01245082]
[1749967229225,0.02412103,106260.0,106250.0,11.04947223]
[1749967231707,0.43769772,106260.0,106250.0,10.42028301]
[1749967231979,0.04702103,106260.0,106250.0,10.49434549]
[1749967232207,0.43769772,106260.0,106250.0,10.49434549]
[1749967232458,0.44649576,106260.0,106250.0,10.49434549]
[1749967232678,0.43769772,106260.0,106250.0,10.49434549]
[1749967232889,0.43769772,106260.0,106250.0,10.53394549]
[1749967233338,0.04702103,106260.0,106250.0,10.63009471]
[1749967235372,0.04702103,106260.0,106250.0,10.43709471]
[1749967235648,0.44649574,106260.0,106250.0,10.53402549]
[1749967235896,0.43769772,106260.0,106250.0,10.53398549]
[1749967236096,0.44649578,106260.0,106250.0,10.53398549]
[1749967236734,0.44649578,106260.0,106250.0,10.34094549]
[1749967236936,0.44649578,106260.0,106250.0,10.53402549]
[1749967237348,0.43769772,106260.0,106250.0,10.53402549]
[1749967237606,0.43769772,106260.0,106250.0,10.34094549]
[1749967237826,0.43769772,106260.0,106250.0,10.53402549]
[1749967238048,0.43769772,106260.0,106250.0,10.34094549]
[1749967238282,0.43769772,106260.0,106250.0,10.53398549]
[1749967239024,0.43769772,106260.0,106250.0,10.55285549]
[1749967239231,0.43769772,106260.0,106250.0,10.53398549]
[1749967239652,0.4471078,106260.0,106250.0,10.53398549]
[1749967239856,0.43769772,106260.0,106250.0,10.53398549]
[1749967240266,0.43769772,106260.0,106250.0,10.38058549]
[1749967240471,0.43769772,106260.0,106250.0,10.53398549]
[1749967240684,0.43769772,106260.0,106250.0,10.38058549]
[1749967240898,0.72991101,106260.0,106250.0,10.29988872]
[1749967241113,0.6447366,106260.0,106250.0,10.45324863]
[1749967241314,0.6447366,106260.0,106250.0,10.30930048]
[1749967241556,0.65352397,106260.0,106250.0,10.47207197]
[1749967241768,0.65352397,106260.0,106250.0,10.46707197]
[1749967241981,0.65352397,106260.0,106250.0,10.46607197]
[1749967242186,0.65352397,106260.0,106250.0,10.46807197]
[1749967242393,0.64411345,106260.0,106250.0,10.30530048]
[1749967242619,0.44648509,106260.0,106250.0,10.35691896]
[1749967242832,0.45589531,106260.0,106250.0,10.51027896]
[1749967243053,0.48412589,106260.0,106250.0,10.51027896]
[1749967243235,0.48412589,106260.0,106250.0,10.47748303]
[1749967243500,0.47473113,106260.0,106250.0,10.47548303]
[1749967243710,0.48414156,106260.0,106250.0,10.45448303]
[1749967243923,0.48474926,106260.0,106250.0,10.45548303]
[1749967244145,0.48414156,106260.0,106250.0,10.45548303]
[1749967244385,0.48474917,106260.0,106250.0,10.45448303]
[1749967244605,0.09346478,106260.0,106250.0,10.45448303]
[1749967244822,0.47473113,106260.0,106250.0,10.30312303]
[1749967245040,0.47473113,106260.0,106250.0,10.45648303]
[1749967245262,0.45591071,106260.0,106250.0,10.45648303]
[1749967245476,0.46532088,106260.0,106250.0,10.45648303]
[1749967245701,0.47473113,106260.0,106250.0,10.45648303]
[1749967246125,0.46592822,106260.0,106250.0,10.45648303]
[1749967246304,0.47473113,106260.0,106250.0,10.45648303]
[1749967246735,0.46592822,106260.0,106250.0,10.45648303]
[1749967246965,0.55049549,106260.0,106250.0,10.45648303]
[1749967247173,0.54169258,106260.0,106250.0,10.45648303]
[1749967247377,0.54108498,106260.0,106250.0,10.45648303]
[1749967247586,0.4841417,106260.0,106250.0,10.45660303]
[1749967247790,0.47533865,106260.0,106250.0,10.45660303]
[1749967248002,0.48414173,106260.0,106250.0,10.45660303]